bitfinex-derivatives/quotes_BTCF0:USTF0_20251009
["timestamp","ask_amount","ask_price","bid_price","bid_amount"]
[1759999286053,0.73703768,121400.0,121390.0,3.47372]
[1759999286253,0.73703768,121400.0,121390.0,2.71776]
[1759999286551,0.76310768,121400.0,121390.0,2.71776]
[1759999286755,0.76310768,121400.0,121390.0,3.4736]
[1759999287147,0.33703768,121400.0,121390.0,2.71776]
[1759999287344,0.33703768,121400.0,121390.0,3.4736]
[1759999288356,0.25468188,121400.0,121390.0,3.7764505]
[1759999288550,0.25468188,121400.0,121390.0,4.1372505]
[1759999288952,0.25468188,121400.0,121390.0,3.4637731]
[1759999289348,0.25468188,121400.0,121390.0,4.2200531]
[1759999289755,0.25468188,121400.0,121390.0,3.4637731]
[1759999289955,0.25468188,121400.0,121390.0,4.2203331]
[1759999291461,0.25468188,121400.0,121390.0,4.6203331]
[1759999292258,0.25468188,121400.0,121390.0,3.8637731]
[1759999292458,0.25468188,121400.0,121390.0,1.4068131]
[1759999292759,0.25468188,121400.0,121390.0,4.2204531]
[1759999293056,0.25468188,121400.0,121390.0,4.2204131]
[1759999293659,0.25468188,121400.0,121390.0,3.4637331]
[1759999293860,0.25468188,121400.0,121390.0,4.2204931]
[1759999294962,0.25468188,121400.0,121390.0,3.4637331]
[1759999295165,0.25468188,121400.0,121390.0,4.6202531]
[1759999295567,0.25468188,121400.0,121390.0,4.6204131]
[1759999297662,0.25468188,121400.0,121390.0,4.6201731]
[1759999298065,0.25468188,121400.0,121390.0,4.9230236]
[1759999298870,0.25468188,121400.0,121390.0,4.9228636]
[1759999299073,0.25468188,121400.0,121390.0,2.1096636]
[1759999299263,0.25468188,121400.0,121390.0,4.9227836]
[1759999299666,0.25468188,121400.0,121390.0,2.1096636]
[1759999299875,0.25468188,121400.0,121390.0,4.9232636]
[1759999300168,0.25468188,121400.0,121390.0,4.5232636]
[1759999300569,0.25468188,121400.0,121390.0,3.4635731]
[1759999300970,0.25468188,121400.0,121390.0,4.2204131]
[1759999301476,0.25468188,121400.0,121390.0,4.5232636]
[1759999301769,0.25468188,121400.0,121390.0,3.7664236]
[1759999301973,0.25468188,121400.0,121390.0,4.5232236]
[1759999302971,0.25468188,121400.0,121390.0,3.7664236]
[1759999303279,0.25468188,121400.0,121390.0,4.5231436]
[1759999303575,0.25468188,121400.0,121390.0,3.7664236]
[1759999303775,0.25468188,121400.0,121390.0,4.5229836]
[1759999305480,0.25468188,121400.0,121390.0,3.7664236]
[1759999305778,0.25468188,121400.0,121390.0,4.5228236]
[1759999307782,0.01633,121420.0,121400.0,0.0823558]
[1759999307783,0.01186287,121420.0,121400.0,0.0823558]
[1759999307976,0.0158,121430.0,121420.0,0.0823422]
[1759999308176,0.22813,121430.0,121420.0,1.0459927]
[1759999308378,0.20206,121430.0,121420.0,1.0459927]
[1759999308583,0.20206,121430.0,121420.0,1.8022327]
[1759999309279,0.20206,121430.0,121420.0,2.21057542]
[1759999309782,0.20206,121430.0,121420.0,1.45437542]
[1759999310181,0.20206,121430.0,121420.0,4.26705542]
[1759999310373,0.20206,121430.0,121420.0,3.11093542]
[1759999310577,0.20206,121430.0,121420.0,3.86705542]
[1759999310980,0.0158,121440.0,121430.0,0.0823354]
[1759999311180,0.3358,121440.0,121430.0,1.0459859]
[1759999312285,0.3358,121440.0,121430.0,1.8021059]
[1759999314787,0.01026,121470.0,121460.0,0.0823151]
[1759999314988,0.32026,121470.0,121460.0,2.2026456]
[1759999315887,0.32026,121470.0,121460.0,2.16976124]
[1759999316284,0.32026,121470.0,121460.0,4.14372614]
[1759999316687,0.72026,121470.0,121460.0,3.11788]
[1759999316882,0.72026,121470.0,121460.0,3.8736]
[1759999317187,0.72026,121470.0,121460.0,4.14356614]
[1759999317689,0.72026,121470.0,121460.0,4.20874011]
[1759999320084,0.72026,121470.0,121460.0,1.39674011]
[1759999320280,0.72026,121470.0,121460.0,4.20834011]
[1759999320485,0.32026,121470.0,121460.0,4.29041521]
[1759999322787,0.32026,121470.0,121460.0,3.45274011]
[1759999322986,0.32026,121470.0,121460.0,4.20770011]
[1759999323388,0.32026,121470.0,121460.0,4.29001521]
[1759999324096,0.32026,121470.0,121460.0,3.53505521]
[1759999324288,0.32026,121470.0,121460.0,4.28989521]
[1759999324590,0.32026,121470.0,121460.0,1.12677397]
[1759999324788,0.8025683,121470.0,121460.0,3.93749397]
[1759999324987,0.72026,121470.0,121460.0,3.93749397]
[1759999325188,0.72026,121470.0,121460.0,1.12677397]
[1759999325489,0.72026,121470.0,121460.0,4.20742011]
[1759999325684,0.72026,121470.0,121460.0,1.66464011]
[1759999325991,0.72026,121470.0,121460.0,4.20531397]
[1759999326191,0.72026,121470.0,121460.0,4.20527397]
[1759999326392,0.72026,121470.0,121460.0,1.39467397]
[1759999326593,0.72026,121470.0,121460.0,4.20519397]
[1759999327092,0.72026,121470.0,121460.0,3.93729397]
[1759999327291,0.72026,121470.0,121460.0,4.28957521]
[1759999327688,0.72026,121470.0,121460.0,4.20726011]
[1759999328496,0.72026,121470.0,121460.0,3.93729397]
[1759999328698,0.72026,121470.0,121460.0,4.20726011]
[1759999329796,0.72026,121470.0,121460.0,4.28957521]
[1759999331597,0.7402227,121470.0,121460.0,4.20726011]
[1759999332497,0.7402227,121470.0,121460.0,3.53497521]
[1759999332692,0.32026,121470.0,121460.0,4.28889521]
[1759999334204,0.26026,121470.0,121460.0,3.93497521]
[1759999334400,0.01026,121470.0,121460.0,4.68893521]
[1759999334706,0.27026,121470.0,121460.0,4.68893521]
[1759999335004,0.27026,121470.0,121460.0,4.68873521]
[1759999335794,0.27026,121470.0,121460.0,1.60908907]
[1759999336000,0.27026,121470.0,121460.0,3.93481521]
[1759999336204,0.27026,121470.0,121460.0,4.68857521]
[1759999337108,0.33026,121470.0,121460.0,3.93481521]
[1759999337302,0.07713429,121470.0,121460.0,3.93481521]
[1759999337506,0.01588,121470.0,121460.0,4.68845521]
[1759999337700,0.01588,121470.0,121460.0,3.93481521]
[1759999337900,0.01588,121470.0,121460.0,4.68829521]
[1759999339011,0.01588,121470.0,121460.0,3.93477521]
[1759999339211,0.01588,121470.0,121460.0,4.68817521]
[1759999339906,0.01588,121470.0,121460.0,4.95607521]
[1759999340805,0.01588,121470.0,121460.0,2.14695521]
[1759999341109,0.01588,121470.0,121460.0,4.95579521]
[1759999343507,0.01588,121470.0,121460.0,1.87698907]
[1759999343709,0.01588,121470.0,121460.0,1.47905521]
[1759999344110,0.01588,121470.0,121460.0,3.45230011]
[1759999344611,0.01588,121470.0,121460.0,4.20534011]
[1759999345110,0.41588,121470.0,121460.0,1.12677397]
[1759999345413,0.68588,121470.0,121460.0,3.93541397]
[1759999346015,0.68588,121470.0,121460.0,4.20538011]
[1759999347310,0.7681883,121470.0,121460.0,3.18233397]
[1759999347513,0.7681883,121470.0,121460.0,3.93541397]
[1759999347918,0.7681883,121470.0,121460.0,3.93521397]
[1759999348223,0.68588,121470.0,121460.0,3.18233397]
[1759999348418,0.68588,121470.0,121460.0,4.20518011]
[1759999348617,0.68588,121470.0,121460.0,1.39674011]
[1759999348817,0.68588,121470.0,121460.0,4.20518011]
[1759999349119,0.68588,121470.0,121460.0,1.39674011]
[1759999349322,0.68588,121470.0,121460.0,3.93521397]
[1759999351118,0.68588,121470.0,121460.0,3.93321397]
[1759999352633,0.68588,121470.0,121460.0,3.93521397]
[1759999353025,0.68588,121470.0,121460.0,1.12677397]
[1759999353026,0.7681883,121470.0,121460.0,1.12677397]
[1759999353226,0.7681883,121470.0,121460.0,3.57409397]
[1759999353924,0.7976983,121470.0,121460.0,3.57409397]
[1759999354220,0.8042783,121470.0,121460.0,3.57409397]
[1759999354426,1.1650783,121470.0,121460.0,2.12081397]
[1759999354619,1.1650783,121470.0,121460.0,2.98333397]
[1759999354927,1.18501625,121470.0,121460.0,2.98333397]
[1759999356425,1.18501625,121470.0,121460.0,0.17517397]
[1759999356724,1.18501625,121470.0,121460.0,2.98329397]
[1759999357428,1.1650783,121470.0,121460.0,2.98329397]
[1759999358722,1.1650783,121470.0,121460.0,2.23085397]
[1759999358919,1.1650783,121470.0,121460.0,2.98309397]
[1759999359121,0.72197,121470.0,121460.0,3.52389397]
[1759999359321,0.8042783,121470.0,121460.0,3.52389397]
[1759999360629,0.8042783,121470.0,121460.0,3.23385397]
[1759999360926,0.8042783,121470.0,121460.0,3.34385397]
[1759999361321,0.8042783,121470.0,121460.0,2.98305397]
[1759999361921,1.06207507,121470.0,121460.0,2.98305397]
[1759999362421,0.66207507,121470.0,121460.0,2.98305397]
[1759999362622,0.66207507,121470.0,121460.0,2.98309397]
[1759999362928,0.66207507,121470.0,121460.0,2.44101397]
[1759999363121,0.66207507,121470.0,121460.0,3.19309397]
[1759999363828,0.4042783,121470.0,121460.0,3.19309397]
[1759999365523,1.06207507,121470.0,121460.0,0.12517397]
[1759999365824,1.42287507,121470.0,121460.0,2.93321397]
[1759999366424,0.8042783,121470.0,121460.0,3.11317397]
[1759999366628,1.06207507,121470.0,121460.0,3.11317397]
[1759999366828,0.8042783,121470.0,121460.0,3.11317397]
[1759999367128,1.06207507,121470.0,121460.0,3.11317397]
[1759999368629,1.06207507,121470.0,121460.0,2.36109397]
[1759999368929,1.06207507,121470.0,121460.0,3.11321397]
[1759999370619,1.06207507,121470.0,121460.0,2.12109397]
[1759999370827,1.06207507,121470.0,121460.0,2.97321397]
[1759999371529,1.08206124,121470.0,121460.0,2.97321397]
[1759999371931,0.82426447,121470.0,121460.0,2.97321397]
[1759999372130,1.08206124,121470.0,121460.0,2.97321397]
[1759999373430,1.08206124,121470.0,121460.0,2.97329397]
[1759999374429,0.82426447,121470.0,121460.0,2.22117397]
[1759999374632,1.08206124,121470.0,121460.0,2.87329397]
[1759999374832,0.99975294,121470.0,121460.0,3.20329397]
[1759999375830,1.08206124,121470.0,121460.0,3.13816]
[1759999376928,0.99975294,121470.0,121460.0,3.13816]
[1759999377529,0.99975294,121470.0,121460.0,2.4683551]
[1759999377730,0.99975294,121470.0,121460.0,2.38604]
[1759999377930,0.93533396,121470.0,121460.0,3.13816]
[1759999379534,0.93533396,121470.0,121460.0,2.38604]
[1759999379736,0.93533396,121470.0,121460.0,3.13816]
[1759999379926,0.93533396,121470.0,121460.0,0.33]
[1759999380132,1.01764226,121470.0,121460.0,3.13816]
[1759999380332,1.01764226,121470.0,121460.0,0.33]
[1759999380529,1.01764226,121470.0,121460.0,2.1818987]
[1759999380738,1.57182005,121470.0,121460.0,0.06]
[1759999380930,0.04539,121450.0,121440.0,0.63650619]
[1759999381131,0.35734617,121450.0,121440.0,3.92804398]
[1759999381327,0.55072396,121450.0,121440.0,2.98254619]
[1759999381628,0.33736,121450.0,121440.0,3.73466619]
[1759999381829,0.33736,121450.0,121440.0,3.92804398]
[1759999382230,0.33736,121450.0,121440.0,3.17592398]
[1759999382430,0.33736,121450.0,121440.0,3.92804398]
[1759999382933,0.33736,121450.0,121440.0,3.5412884]
[1759999383237,0.33736,121450.0,121440.0,3.84571558]
[1759999383427,0.53073779,121450.0,121440.0,3.65233779]
[1759999383633,0.33736,121450.0,121440.0,3.5412887]
[1759999383833,0.33736,121450.0,121440.0,3.84571558]
[1759999384036,0.33736,121450.0,121440.0,3.84575558]
[1759999384236,0.33736,121450.0,121440.0,3.65237779]
[1759999384530,0.33736,121450.0,121440.0,3.92808428]
[1759999385338,0.34394,121450.0,121440.0,3.92808428]
[1759999387036,0.34394,121450.0,121440.0,3.09363558]
[1759999387337,0.34394,121450.0,121440.0,3.84575558]
[1759999388139,0.34394,121450.0,121440.0,4.11365558]
[1759999388536,0.37197,121450.0,121440.0,0.9187]
[1759999388740,0.56534779,121450.0,121440.0,3.92031779]
[1759999389540,0.37197,121450.0,121440.0,3.92031779]
[1759999389839,0.56534779,121450.0,121440.0,3.92031779]
[1759999390630,0.56534779,121450.0,121440.0,3.72698]
[1759999390833,0.56534779,121450.0,121440.0,3.92035779]
[1759999391032,0.56534779,121450.0,121440.0,3.92031779]
[1759999392242,0.56534779,121450.0,121440.0,1.11207779]
[1759999392441,0.56534779,121450.0,121440.0,3.92031779]
[1759999392640,0.64766969,121450.0,121440.0,3.92031779]
[1759999392840,0.84104748,121450.0,121440.0,2.38406]
[1759999393042,1.62212989,121450.0,121440.0,2.32406]
[1759999393340,0.1277254,121430.0,121420.0,0.53544328]
[1759999393537,0.64110319,121430.0,121420.0,3.62368328]
[1759999393840,0.64110319,121430.0,121420.0,0.35416549]
[1759999394044,0.64110319,121430.0,121420.0,2.23032549]
[1759999394239,1.00190319,121430.0,121420.0,2.98240549]
[1759999394433,1.40190319,121430.0,121420.0,0.17416549]
[1759999394641,1.42215259,121430.0,121420.0,2.98244549]
[1759999394944,1.2287748,121430.0,121420.0,2.98244549]
[1759999395140,1.42215259,121430.0,121420.0,0.10838272]
[1759999395445,1.42226648,121430.0,121420.0,2.91670272]
[1759999395840,1.42226648,121430.0,121420.0,0.10838272]
[1759999395841,1.61564427,121430.0,121420.0,0.10838272]
[1759999396045,0.0997022,121420.0,121410.0,2.05624]
[1759999396240,1.15760731,121420.0,121410.0,2.97836]
[1759999396439,1.55760731,121420.0,121410.0,2.97836]
[1759999397442,1.17085173,121420.0,121410.0,2.98642335]
[1759999397645,0.30736,121420.0,121410.0,2.93695308]
[1759999398037,1.73063557,121420.0,121410.0,2.22624]
[1759999398242,1.73063557,121420.0,121410.0,2.97836]
[1759999398243,1.5575871,121420.0,121410.0,2.97836]
[1759999398549,1.53725778,121420.0,121410.0,2.97836]
[1759999399235,0.3897022,121420.0,121410.0,2.97836]
[1759999399436,0.58307999,121420.0,121410.0,2.22624]
[1759999399640,0.80448778,121420.0,121410.0,0.17]
[1759999399847,0.61110999,121420.0,121410.0,2.23477829]
[1759999400047,0.80448778,121420.0,121410.0,2.98693829]
[1759999400248,0.52876779,121420.0,121410.0,2.98693829]
[1759999400448,0.61110999,121420.0,121410.0,2.98693829]
[1759999400853,0.52876779,121420.0,121410.0,2.42815608]
[1759999401042,0.52876779,121420.0,121410.0,3.18031608]
[1759999401348,0.52876779,121420.0,121410.0,2.31712729]
[1759999401545,0.52876779,121420.0,121410.0,2.51050508]
[1759999401751,0.52876779,121420.0,121410.0,2.93588017]
[1759999401752,0.33539,121420.0,121410.0,2.93588017]
[1759999401936,0.33539,121420.0,121410.0,4.08808017]
[1759999402141,0.30736,121420.0,121410.0,4.08808017]
[1759999402538,0.80448778,121420.0,121410.0,0.24291338]
[1759999402739,0.80448778,121420.0,121410.0,2.29947338]
[1759999402939,0.80448778,121420.0,121410.0,3.05167338]
[1759999403849,0.80448778,121420.0,121410.0,2.29947338]
[1759999404056,1.16528778,121420.0,121410.0,2.22656]
[1759999404250,1.16528778,121420.0,121410.0,2.97876]
[1759999404846,1.08294558,121420.0,121410.0,2.22656]
[1759999405151,1.16528778,121420.0,121410.0,0.17]
[1759999405351,1.16528778,121420.0,121410.0,2.97884]
[1759999405551,1.16528778,121420.0,121410.0,2.97888]
[1759999406350,1.16528778,121420.0,121410.0,2.22664]
[1759999406550,1.16528778,121420.0,121410.0,2.97884]
[1759999407655,1.16528778,121420.0,121410.0,0.17]
[1759999407656,1.75866557,121420.0,121410.0,0.17]
[1759999407855,1.75866557,121420.0,121410.0,0.92224]
[1759999408049,1.75866557,121420.0,121410.0,0.17]
[1759999408255,1.75866557,121420.0,121410.0,2.22672]
[1759999408455,1.56528778,121420.0,121410.0,2.97896]
[1759999409253,1.1785322,121420.0,121410.0,2.97896]
[1759999409450,1.56528778,121420.0,121410.0,2.97896]
[1759999410447,1.58563066,121420.0,121410.0,2.97896]
[1759999411964,1.58563066,121420.0,121410.0,0.17]
[1759999412262,1.58563066,121420.0,121410.0,2.97904]
[1759999412956,1.58563066,121420.0,121410.0,2.2268]
[1759999413357,1.58563066,121420.0,121410.0,2.97908]
[1759999413559,1.19887508,121420.0,121410.0,2.97908]
[1759999413764,1.58563066,121420.0,121410.0,2.97908]
[1759999414462,1.59221066,121420.0,121410.0,2.97908]
[1759999416861,1.59221066,121420.0,121410.0,2.2268]
[1759999417061,1.59221066,121420.0,121410.0,2.97908]
[1759999417762,1.10986846,121420.0,121410.0,3.061429]
[1759999418065,1.10986846,121420.0,121410.0,4.01560679]
[1759999418066,0.34197,121420.0,121410.0,4.01560679]
[1759999418265,0.36234337,121420.0,121410.0,4.01560679]
[1759999418769,0.33431337,121420.0,121410.0,3.822229]
[1759999419062,0.52769116,121420.0,121410.0,2.62692]
[1759999419268,0.52769116,121420.0,121410.0,3.461549]
[1759999420467,0.33431337,121420.0,121410.0,3.461549]
[1759999420668,0.52769116,121420.0,121410.0,3.461549]
[1759999421064,0.61003336,121420.0,121410.0,3.3792]
[1759999421466,0.52769116,121420.0,121410.0,2.98772]
[1759999421666,0.33431337,121420.0,121410.0,4.01572679]
[1759999421966,0.52769116,121420.0,121410.0,4.01572679]
[1759999423971,0.52769116,121420.0,121410.0,3.61572679]
[1759999424265,0.55552116,121420.0,121410.0,0.72417779]
[1759999424569,0.55552116,121420.0,121410.0,3.53333779]
[1759999425170,0.55552116,121420.0,121410.0,3.61568679]
[1759999426265,0.55552116,121420.0,121410.0,3.422309]
[1759999426266,0.36214337,121420.0,121410.0,3.422309]
[1759999426567,0.55552116,121420.0,121410.0,3.61568679]
[1759999427270,0.33431337,121420.0,121410.0,4.01568679]
[1759999427569,0.33431337,121420.0,121410.0,4.20906458]
[1759999427775,0.33431337,121420.0,121410.0,3.45682458]
[1759999428266,0.33431337,121420.0,121410.0,4.20906458]
[1759999428474,0.33431337,121420.0,121410.0,3.45682458]
[1759999428666,0.33431337,121420.0,121410.0,4.20902458]
[1759999430068,0.31394,121420.0,121410.0,3.45682458]
[1759999430269,0.31394,121420.0,121410.0,4.20902458]
[1759999431774,0.31394,121420.0,121410.0,3.45682458]
[1759999432071,0.31394,121420.0,121410.0,4.20898458]
[1759999432475,0.31394,121420.0,121410.0,1.39990458]
[1759999432675,0.31394,121420.0,121410.0,3.822109]
[1759999432878,0.31394,121420.0,121410.0,4.20886458]
[1759999434071,0.31394,121420.0,121410.0,3.45670458]
[1759999434278,0.31394,121420.0,121410.0,4.20886458]
[1759999435168,0.31394,121420.0,121410.0,4.20686458]
[1759999436775,0.31394,121420.0,121410.0,3.62670458]
[1759999436979,0.31394,121420.0,121410.0,4.37878458]
[1759999437576,0.31394,121420.0,121410.0,1.56990458]
[1759999437773,0.31394,121420.0,121410.0,4.37866458]
[1759999438777,0.31394,121420.0,121410.0,4.37858458]
[1759999439876,0.31394,121420.0,121410.0,4.24973543]
[1759999440580,0.31394,121420.0,121410.0,1.44105543]
[1759999440768,0.31394,121420.0,121410.0,4.24969543]
[1759999441572,0.31394,121420.0,121410.0,1.183149]
[1759999441778,0.31394,121420.0,121410.0,4.24965543]
[1759999442377,0.31394,121420.0,121410.0,3.49765543]
[1759999442578,0.31394,121420.0,121410.0,4.24965543]
[1759999442787,0.31394,121420.0,121410.0,3.49765543]
[1759999443175,0.31394,121420.0,121410.0,4.24965543]
[1759999444273,0.31394,121420.0,121410.0,1.44105543]
[1759999444478,0.01736,121430.0,121420.0,0.0823422]
[1759999444680,0.28736,121430.0,121420.0,1.79300863]
[1759999445181,0.28736,121430.0,121420.0,1.04104863]
[1759999445383,0.28736,121430.0,121420.0,1.79300863]
[1759999446380,0.28736,121430.0,121420.0,3.84952863]
[1759999446884,0.28736,121430.0,121420.0,1.04104863]
[1759999447084,0.28736,121430.0,121420.0,3.09756863]
[1759999447282,0.28736,121430.0,121420.0,3.84952863]
[1759999447479,0.28736,121430.0,121420.0,4.11742863]
[1759999447882,0.28736,121430.0,121420.0,3.36546863]
[1759999448077,0.28736,121430.0,121420.0,3.28312643]
[1759999448278,0.28736,121430.0,121420.0,3.77714]
[1759999448483,0.68736,121430.0,121420.0,3.02522]
[1759999448783,0.68736,121430.0,121420.0,3.77714]
[1759999449280,0.71618,121430.0,121420.0,0.9687]
[1759999449585,0.71618,121430.0,121420.0,3.77714]
[1759999450081,0.7985154,121430.0,121420.0,0.7008]
[1759999450285,1.05642183,121430.0,121420.0,2.93844]
[1759999450480,1.41722183,121430.0,121420.0,2.18652]
[1759999450681,1.05642183,121430.0,121420.0,2.93844]
[1759999451687,1.05642183,121430.0,121420.0,0.13]
[1759999451878,1.41722183,121430.0,121420.0,2.18652]
[1759999452082,1.41722183,121430.0,121420.0,2.9384]
[1759999452981,1.1593154,121430.0,121420.0,2.9384]
[1759999453189,0.71618,121430.0,121420.0,3.5815422]
[1759999454185,0.7985154,121430.0,121420.0,3.5815422]
[1759999454985,0.71618,121430.0,121420.0,3.5815422]
[1759999455179,0.31618,121430.0,121420.0,3.83944863]
[1759999455386,0.31618,121430.0,121420.0,3.08756863]
[1759999455685,0.31618,121430.0,121420.0,3.83944863]
[1759999456486,0.31618,121430.0,121420.0,3.5815422]
[1759999457091,0.31618,121430.0,121420.0,3.08756863]
[1759999457588,0.31618,121430.0,121420.0,3.83944863]
[1759999458383,0.31618,121430.0,121420.0,3.08756863]
[1759999458584,0.31618,121430.0,121420.0,3.83944863]
[1759999459291,0.31618,121430.0,121420.0,4.10734863]
[1759999460093,0.28736,121430.0,121420.0,3.35546863]
[1759999460400,0.28736,121430.0,121420.0,4.23944863]
[1759999463595,0.28736,121430.0,121420.0,4.23940863]
[1759999464393,0.28736,121430.0,121420.0,1.43104863]
[1759999464594,0.28736,121430.0,121420.0,3.48760863]
[1759999464896,0.28736,121430.0,121420.0,4.23940863]
[1759999466094,0.28736,121430.0,121420.0,1.1731422]
[1759999466295,0.28736,121430.0,121420.0,3.48756863]
[1759999466606,0.28736,121430.0,121420.0,3.83936863]
[1759999466899,0.28736,121430.0,121420.0,3.83932863]
[1759999467799,0.28736,121430.0,121420.0,1.03104863]
[1759999467989,0.28736,121430.0,121420.0,3.83928863]
[1759999468188,0.28736,121430.0,121420.0,4.10718863]
[1759999471101,0.28736,121430.0,121420.0,4.10714863]
[1759999471597,0.28736,121430.0,121420.0,4.10710863]
[1759999472904,0.28736,121430.0,121420.0,1.29894863]
[1759999473202,0.28736,121430.0,121420.0,4.10706863]
[1759999473502,0.28736,121430.0,121420.0,3.35538863]
[1759999473707,0.28736,121430.0,121420.0,4.10706863]
[1759999474002,0.28736,121430.0,121420.0,3.35538863]
[1759999474306,0.28736,121430.0,121420.0,4.10706863]
[1759999474495,0.28736,121430.0,121420.0,3.35538863]
[1759999474803,0.28736,121430.0,121420.0,3.8491622]
[1759999475000,0.28736,121430.0,121420.0,4.10706863]
[1759999476103,0.28736,121430.0,121420.0,4.10698863]
[1759999477299,0.28736,121430.0,121420.0,1.29894863]
[1759999477504,0.3151,121430.0,121420.0,3.0151]
[1759999477803,0.7151,121430.0,121420.0,3.75674643]
[1759999478906,0.7151,121430.0,121420.0,0.94870643]
[1759999479105,0.7151,121430.0,121420.0,3.75670643]
[1759999480005,0.7151,121430.0,121420.0,3.83904863]
[1759999480808,0.7151,121430.0,121420.0,3.08744863]
[1759999481108,0.7151,121430.0,121420.0,3.83904863]
[1759999482003,0.7151,121430.0,121420.0,3.08744863]
[1759999482305,0.28736,121430.0,121420.0,3.08744863]
[1759999482602,0.28736,121430.0,121420.0,3.83900863]
[1759999482796,0.28736,121430.0,121420.0,3.08744863]
[1759999482998,0.28736,121430.0,121420.0,3.83900863]
[1759999483907,0.28736,121430.0,121420.0,1.03104863]
[1759999484112,0.28736,121430.0,121420.0,3.08744863]
[1759999484309,0.28736,121430.0,121420.0,3.83900863]
[1759999485008,0.28736,121430.0,121420.0,1.29894863]
[1759999485205,0.28736,121430.0,121420.0,4.10690863]
[1759999485604,0.28736,121430.0,121420.0,3.83900863]
[1759999486702,0.28736,121430.0,121420.0,3.08744863]
[1759999486904,0.28736,121430.0,121420.0,3.83896863]
[1759999488010,0.28736,121430.0,121420.0,2.7472]
[1759999488199,0.28736,121430.0,121420.0,3.75662643]
[1759999488200,0.3696954,121430.0,121420.0,3.75662643]
[1759999488404,0.31312,121430.0,121420.0,0.6908]
[1759999488612,1.05336183,121430.0,121420.0,2.74716]
[1759999488908,1.05336183,121430.0,121420.0,2.1864]
[1759999489115,1.05336183,121430.0,121420.0,2.93792]
[1759999489512,1.41416183,121430.0,121420.0,2.1864]
[1759999490013,1.41416183,121430.0,121420.0,2.93792]
[1759999492106,1.1562554,121430.0,121420.0,2.93792]
[1759999492305,1.41416183,121430.0,121420.0,2.93792]
[1759999493411,1.41416183,121430.0,121420.0,2.1864]
[1759999493612,1.43459391,121430.0,121420.0,2.93792]
[1759999494815,1.17668748,121430.0,121420.0,2.93792]
[1759999495013,1.43459391,121430.0,121420.0,2.93792]
[1759999496413,0.33355208,121430.0,121420.0,2.4687422]
[1759999496609,0.33355208,121430.0,121420.0,3.5810622]
[1759999496914,0.41588748,121430.0,121420.0,2.9602622]
[1759999497706,0.67379391,121430.0,121420.0,2.9602622]
[1759999498113,0.67379391,121430.0,121420.0,0.1523422]
[1759999498314,0.67379391,121430.0,121420.0,2.9604622]
[1759999498915,0.67379391,121430.0,121420.0,2.2089422]
[1759999499214,0.67379391,121430.0,121420.0,2.9604622]
[1759999500615,0.65336183,121430.0,121420.0,2.9604622]
[1759999500917,0.31312,121430.0,121420.0,3.81912863]
[1759999501112,0.3954554,121430.0,121420.0,0.1423422]
[1759999501414,0.3954554,121430.0,121420.0,3.1704622]
[1759999501415,0.31312,121430.0,121420.0,3.1704622]
[1759999501605,0.31312,121430.0,121420.0,3.5312622]
[1759999502015,0.58894218,121430.0,121420.0,0.25348678]
[1759999502321,0.58894218,121430.0,121420.0,3.00164678]
[1759999502508,0.60936316,121430.0,121420.0,3.36398898]
[1759999502704,0.60936316,121430.0,121420.0,0.55582898]
[1759999503015,0.60936316,121430.0,121420.0,3.08816]
[1759999503214,0.60936316,121430.0,121420.0,2.4190222]
[1759999503613,0.58894218,121430.0,121420.0,3.1705022]
[1759999503916,0.3954554,121430.0,121420.0,3.63188898]
[1759999504314,0.58894218,121430.0,121420.0,3.63188898]
[1759999504513,0.31312,121430.0,121420.0,3.43469576]
[1759999504718,0.28736,121430.0,121420.0,4.58617576]
[1759999504912,0.3962954,121430.0,121420.0,3.24120898]
[1759999505112,0.31396,121430.0,121420.0,3.99268898]
[1759999505417,0.31396,121430.0,121420.0,3.43469576]
[1759999505619,0.31396,121430.0,121420.0,4.18617576]
[1759999506119,0.31396,121430.0,121420.0,3.0477222]
[1759999506311,0.31396,121430.0,121420.0,4.18613576]
[1759999506913,0.28736,121430.0,121420.0,3.43469576]
[1759999507112,0.28736,121430.0,121420.0,4.18613576]
[1759999507514,0.28736,121430.0,121420.0,0.9910422]
[1759999507717,0.31396,121430.0,121420.0,4.18613576]
[1759999508117,0.31396,121430.0,121420.0,3.43469576]
[1759999508318,0.31396,121430.0,121420.0,4.18613576]
[1759999508719,0.28736,121430.0,121420.0,4.18613576]
[1759999511423,0.28736,121430.0,121420.0,3.43469576]
[1759999511619,0.30779666,121430.0,121420.0,4.18609576]
[1759999513515,0.30779666,121430.0,121420.0,4.58605576]
[1759999513719,0.30779666,121430.0,121420.0,4.77954254]
[1759999514225,0.30779666,121430.0,121420.0,4.58597576]
[1759999514827,0.30779666,121430.0,121420.0,4.58593576]
[1759999516824,0.30779666,121430.0,121420.0,3.83461576]
[1759999517128,0.31437666,121430.0,121420.0,4.58593576]
[1759999517527,0.31437666,121430.0,121420.0,4.77942254]
[1759999517726,0.29394,121430.0,121420.0,4.51152254]
[1759999517926,0.29394,121430.0,121420.0,4.51144254]
[1759999518927,0.29394,121430.0,121420.0,3.83453576]
[1759999519228,0.29394,121430.0,121420.0,4.58581576]
[1759999520025,0.29394,121430.0,121420.0,3.83453576]
[1759999520329,0.29394,121430.0,121420.0,4.77926254]
[1759999521232,0.29394,121430.0,121420.0,1.97150254]
[1759999521425,0.29394,121430.0,121420.0,4.77922254]
[1759999521928,0.29394,121430.0,121420.0,4.58573576]
[1759999523136,0.29394,121430.0,121420.0,3.76008254]
[1759999523323,0.29394,121430.0,121420.0,4.51128254]
[1759999524637,0.29394,121430.0,121420.0,3.76008254]
[1759999524828,0.29394,121430.0,121420.0,4.51128254]
[1759999526832,0.29394,121430.0,121420.0,4.51116254]
[1759999527835,0.29394,121430.0,121420.0,1.70360254]
[1759999528134,0.29394,121430.0,121420.0,4.51108254]
[1759999529235,0.29394,121430.0,121420.0,1.70360254]
[1759999529432,0.29394,121430.0,121420.0,0.6408]
[1759999529433,0.31976,121430.0,121420.0,0.6408]
[1759999529734,0.31976,121430.0,121420.0,3.91755576]
[1759999529937,0.31976,121430.0,121420.0,3.08409356]
[1759999530136,0.31976,121430.0,121420.0,1.02777356]
[1759999530337,0.4020954,121430.0,121420.0,0.83428678]
[1759999530731,0.8020954,121430.0,121420.0,3.64168678]
[1759999530934,0.71976,121430.0,121420.0,3.64168678]
[1759999531136,0.8020954,121430.0,121420.0,3.83517356]
[1759999531338,0.8020954,121430.0,121420.0,3.4482]
[1759999531532,0.8020954,121430.0,121420.0,3.83517356]
[1759999531738,0.8020954,121430.0,121420.0,3.08409356]
[1759999532038,0.8020954,121430.0,121420.0,3.83513356]